fUSD/lending_fUSD_20250113
["ID","MTS","AMOUNT","RATE_DAILY","PERIOD"]
[348729238,1736758240848,-516.2,9.532e-05,2]
[348729239,1736758240857,-354.2768801,9.532e-05,2]
[348729240,1736758240866,-638.60568308,9.532e-05,2]
[348729241,1736758240875,-500.0,9.532e-05,2]
[348729242,1736758240884,-500.0,9.532e-05,2]
[348729243,1736758240893,-500.0,9.532e-05,2]
[348729244,1736758240903,-500.0,9.532e-05,2]
[348729245,1736758240912,-2215.67,9.532e-05,2]
[348729246,1736758240921,-500.0,9.532e-05,2]
[348729247,1736758240930,-2459.43,9.532e-05,2]
[348729248,1736758240939,-500.0,9.532e-05,2]
[348729249,1736758240949,-542.47,9.532e-05,2]
[348729250,1736758240958,-500.0,9.532e-05,2]
[348729251,1736758240968,-500.0,9.532e-05,2]
[348729252,1736758240977,-500.0,9.532e-05,2]
[348729253,1736758240988,-157.760055,9.532e-05,2]
[348729254,1736758240998,-500.0,9.532e-05,2]
[348729255,1736758241007,-500.0,9.532e-05,2]
[348729256,1736758241016,-673.55,9.532e-05,2]
[348729257,1736758241027,-500.80571382,9.532e-05,2]
[348729258,1736758241043,-500.0,9.532e-05,2]
[348729259,1736758241052,-500.0,9.532e-05,2]
[348729260,1736758241061,-500.0,9.532e-05,2]
[348729261,1736758241071,-500.0,9.532e-05,2]
[348729262,1736758241080,-500.0,9.532e-05,2]
[348729263,1736758241090,-500.0,9.532e-05,2]
[348729264,1736758241099,-500.0,9.532e-05,2]
[348729265,1736758241110,-500.0,9.532e-05,2]
[348729266,1736758241120,-500.0,9.532e-05,2]
[348729267,1736758241129,-500.0,9.532e-05,2]
[348729268,1736758241138,-550.21,9.532e-05,2]
[348729269,1736758241147,-500.0,9.532e-05,2]
[348729270,1736758241157,-500.0,9.532e-05,2]
[348729271,1736758241167,-563.79,9.532e-05,2]
[348729272,1736758241177,-601.85801527,9.532e-05,2]
[348729273,1736758241187,-500.0,9.532e-05,2]
[348729274,1736758241198,-500.0,9.532e-05,2]
[348729275,1736758241207,-500.0,9.532e-05,2]
[348729276,1736758241216,-500.0,9.532e-05,2]
[348729277,1736758241225,-500.0,9.532e-05,2]
[348729278,1736758241234,-500.0,9.532e-05,2]
[348729279,1736758241243,-1208.23,9.532e-05,2]
[348729280,1736758241252,-500.0,9.532e-05,2]
[348729281,1736758241260,-500.0,9.532e-05,2]
[348729282,1736758241269,-501.12758104,9.532e-05,2]
[348729283,1736758241278,-500.0,9.532e-05,2]
[348729284,1736758241288,-500.0,9.532e-05,2]
[348729285,1736758241298,-606.96,9.532e-05,2]
[348729286,1736758241308,-1189.82,9.532e-05,2]
[348729287,1736758241317,-500.0,9.532e-05,2]
[348729288,1736758241327,-500.0,9.532e-05,2]
[348729289,1736758241336,-500.0,9.532e-05,2]
[348729290,1736758241346,-500.0,9.532e-05,2]
[348729291,1736758241355,-500.0,9.532e-05,2]
[348729292,1736758241364,-501.12646751,9.532e-05,2]
[348729293,1736758241373,-762.11,9.532e-05,2]
[348729294,1736758241382,-500.0,9.532e-05,2]
[348729295,1736758241391,-500.0,9.532e-05,2]
[348729296,1736758241399,-500.0,9.532e-05,2]
[348729297,1736758241408,-500.0,9.532e-05,2]
[348729298,1736758241417,-500.0,9.532e-05,2]
[348729299,1736758241426,-500.0,9.532e-05,2]
[348729300,1736758241435,-500.0,9.532e-05,2]
[348729301,1736758241444,-929.92,9.532e-05,2]
[348729302,1736758241454,-500.0,9.532e-05,2]
[348729303,1736758241463,-502.39315846,9.532e-05,2]
[348729304,1736758241472,-2190.53,9.532e-05,2]
[348729305,1736758241482,-500.0,9.532e-05,2]
[348729306,1736758241491,-500.0,9.532e-05,2]
[348729307,1736758241500,-500.0,9.532e-05,2]
[348729308,1736758241510,-500.0,9.532e-05,2]
[348729309,1736758241520,-500.0,9.532e-05,2]
[348729310,1736758241531,-500.0,9.532e-05,2]
[348729311,1736758241540,-500.0,9.532e-05,2]
[348729312,1736758241549,-500.0,9.532e-05,2]
[348729313,1736758241558,-500.0,9.532e-05,2]
[348729314,1736758241568,-500.0,9.532e-05,2]
[348729315,1736758241577,-885.43,9.532e-05,2]
[348729316,1736758241587,-500.0,9.532e-05,2]
[348729317,1736758241596,-500.0,9.532e-05,2]
[348729318,1736758241605,-500.0,9.532e-05,2]
[348729319,1736758241614,-703.83,9.532e-05,2]
[348729320,1736758241622,-500.0,9.532e-05,2]
[348729321,1736758241632,-500.0,9.532e-05,2]
[348729322,1736758241641,-500.0,9.532e-05,2]
[348729323,1736758241650,-500.0,9.532e-05,2]
[348729324,1736758241659,-500.0,9.532e-05,2]
[348729325,1736758241668,-500.0,9.532e-05,2]
[348729326,1736758241677,-204.15,9.532e-05,2]
[348729327,1736758241686,-500.0,9.532e-05,2]
[348729328,1736758241696,-500.0,9.532e-05,2]
[348729329,1736758241705,-500.0,9.532e-05,2]
[348729330,1736758241716,-500.0,9.532e-05,2]
[348729331,1736758241727,-702.83,9.532e-05,2]
[348729332,1736758241736,-500.0,9.532e-05,2]
[348729333,1736758241746,-500.0,9.532e-05,2]
[348729334,1736758241756,-500.0,9.532e-05,2]
[348729335,1736758241765,-500.0,9.532e-05,2]
[348729336,1736758241774,-500.0,9.532e-05,2]
[348729337,1736758241784,-500.0,9.532e-05,2]
[348729338,1736758241793,-500.0,9.532e-05,2]
[348729339,1736758241802,-500.0,9.532e-05,2]
[348729340,1736758241811,-500.0,9.532e-05,2]
[348729341,1736758241821,-500.0,9.532e-05,2]
[348729342,1736758241830,-500.0,9.532e-05,2]
[348729343,1736758241839,-1235.02,9.532e-05,2]
[348729344,1736758241848,-500.0,9.532e-05,2]
[348729345,1736758241857,-500.0,9.532e-05,2]
[348729346,1736758241867,-500.0,9.532e-05,2]
[348729347,1736758241876,-500.0,9.532e-05,2]
[348729348,1736758241885,-500.0,9.532e-05,2]
[348729349,1736758241894,-500.0,9.532e-05,2]
[348729350,1736758241903,-500.0,9.532e-05,2]
[348729351,1736758241912,-500.0,9.532e-05,2]
[348729352,1736758241922,-500.0,9.532e-05,2]
[348729353,1736758241932,-500.0,9.532e-05,2]
[348729354,1736758241941,-500.0,9.532e-05,2]
[348729355,1736758241952,-500.0,9.532e-05,2]
[348729356,1736758241962,-502.28866342,9.532e-05,2]
[348729357,1736758241971,-500.0,9.532e-05,2]
[348729358,1736758241980,-500.0,9.532e-05,2]
[348729359,1736758241989,-500.0,9.532e-05,2]
[348729360,1736758241999,-500.0,9.532e-05,2]
[348729361,1736758242008,-509.39132598,9.532e-05,2]
[348729362,1736758242017,-500.0,9.532e-05,2]
[348729363,1736758242028,-2438.67,9.532e-05,2]
[348729364,1736758242039,-500.0,9.532e-05,2]
[348729365,1736758242048,-500.0,9.532e-05,2]
[348729366,1736758242058,-500.0,9.532e-05,2]
[348729367,1736758242068,-500.0,9.532e-05,2]
[348729368,1736758242077,-1716.47,9.532e-05,2]
[348729369,1736758242087,-500.0,9.532e-05,2]
[348729370,1736758242096,-500.0,9.532e-05,2]
[348729371,1736758242106,-500.0,9.532e-05,2]
[348729372,1736758242115,-501.3670496,9.532e-05,2]
[348729373,1736758242125,-500.0,9.532e-05,2]
[348729374,1736758242135,-500.0,9.532e-05,2]
[348729375,1736758242144,-500.0,9.532e-05,2]
[348729376,1736758242154,-562.83,9.532e-05,2]
[348729377,1736758242163,-500.0,9.532e-05,2]
[348729378,1736758242172,-500.0,9.532e-05,2]
[348729379,1736758242180,-500.0,9.532e-05,2]
[348729380,1736758242190,-500.0,9.532e-05,2]
[348729381,1736758242201,-500.63387881,9.532e-05,2]
[348729382,1736758242210,-505.89238555,9.532e-05,2]
[348729383,1736758242219,-500.0,9.532e-05,2]
[348729384,1736758242228,-500.0,9.532e-05,2]
[348729385,1736758242237,-500.0,9.532e-05,2]
[348729386,1736758242246,-670.54,9.532e-05,2]
[348729387,1736758242255,-637.14,9.532e-05,2]
[348729388,1736758242264,-500.0,9.532e-05,2]
[348729389,1736758242273,-500.0,9.532e-05,2]
[348729390,1736758242282,-500.0,9.532e-05,2]
[348729391,1736758242291,-500.0,9.532e-05,2]
[348729392,1736758242300,-500.0,9.532e-05,2]
[348729393,1736758242308,-509.67441483,9.532e-05,2]
[348729394,1736758242317,-500.0,9.532e-05,2]
[348729395,1736758242326,-502.40585016,9.532e-05,2]
[348729396,1736758242335,-500.0,9.532e-05,2]
[348729397,1736758242344,-500.0,9.532e-05,2]
[348729398,1736758242353,-500.0,9.532e-05,2]
[348729399,1736758242362,-1286.0,9.532e-05,2]
[348729400,1736758242371,-500.0,9.533e-05,2]
[348729401,1736758242380,-500.0,9.533e-05,2]
[348729402,1736758242389,-505.21314064,9.533e-05,2]
[348729403,1736758242398,-500.0,9.533e-05,2]
[348729404,1736758242407,-500.0,9.533e-05,2]
[348729405,1736758242415,-535.94083761,9.533e-05,2]
[348729406,1736758242424,-500.0,9.533e-05,2]
[348729407,1736758242433,-500.0,9.533e-05,2]
[348729408,1736758242442,-500.0,9.533e-05,2]
[348729409,1736758242452,-500.0,9.533e-05,2]
[348729410,1736758242461,-500.0,9.533e-05,2]
[348729411,1736758242475,-500.0,9.533e-05,2]
[348729412,1736758242489,-500.0,9.533e-05,2]
[348729413,1736758242501,-500.8680478,9.533e-05,2]
[348729414,1736758242512,-500.0,9.533e-05,2]
[348729415,1736758242523,-500.0,9.533e-05,2]
[348729416,1736758242535,-500.0,9.533e-05,2]
[348729417,1736758242548,-500.0,9.533e-05,2]
[348729418,1736758242560,-500.0,9.533e-05,2]
[348729419,1736758242574,-500.0,9.533e-05,2]
[348729420,1736758242588,-500.0,9.533e-05,2]
[348729421,1736758242604,-500.0,9.533e-05,2]
[348729422,1736758242618,-500.0,9.533e-05,2]
[348729423,1736758242629,-500.0,9.533e-05,2]
[348729424,1736758242640,-500.0,9.533e-05,2]
[348729426,1736758242650,-500.0,9.533e-05,2]
[348729428,1736758242662,-500.0,9.533e-05,2]
[348729429,1736758242674,-500.0,9.533e-05,2]
[348729430,1736758242686,-500.0,9.533e-05,2]
[348729431,1736758242698,-500.0,9.533e-05,2]
[348729432,1736758242710,-505.26964228,9.533e-05,2]
[348729433,1736758242723,-500.56269139,9.533e-05,2]
[348729434,1736758242735,-500.0,9.533e-05,2]
[348729435,1736758242748,-639.67,9.533e-05,2]
[348729436,1736758242760,-610.33079436,9.533e-05,2]
[348729438,1736758242773,-500.0,9.533e-05,2]
[348729440,1736758242785,-500.0,9.533e-05,2]
[348729441,1736758242800,-500.0,9.533e-05,2]
[348729442,1736758242811,-500.0,9.533e-05,2]
[348729443,1736758242824,-500.0,9.533e-05,2]
[348729444,1736758242835,-500.0,9.533e-05,2]
[348729445,1736758242847,-500.54521001,9.533e-05,2]
[348729448,1736758242859,-500.0,9.533e-05,2]
[348729451,1736758242871,-500.0,9.533e-05,2]
[348729454,1736758242883,-500.85758844,9.533e-05,2]
[348729456,1736758242895,-500.90321919,9.533e-05,2]
[348729458,1736758242905,-504.39369017,9.533e-05,2]
[348729460,1736758242915,-500.0,9.533e-05,2]
[348729461,1736758242927,-536.22183919,9.533e-05,2]
[348729462,1736758242938,-503.03916845,9.533e-05,2]
[348729463,1736758242953,-575.59222169,9.533e-05,2]
[348729464,1736758242966,-500.0,9.533e-05,2]
[348729465,1736758242976,-500.0,9.533e-05,2]
[348729466,1736758242986,-503.66877463,9.533e-05,2]
[348729467,1736758242996,-507.90209942,9.533e-05,2]
[348729468,1736758243008,-500.0,9.533e-05,2]
[348729469,1736758243020,-500.0,9.533e-05,2]
[348729470,1736758243036,-517.61784341,9.533e-05,2]
[348729471,1736758243047,-504.0053745,9.533e-05,2]
[348729472,1736758243057,-500.0,9.533e-05,2]
[348729473,1736758243067,-500.0,9.533e-05,2]
[348729474,1736758243079,-479.48287513,9.533e-05,2]
[348729475,1736758243090,-500.95470555,9.533e-05,2]
[348729476,1736758243102,-503.21682326,9.533e-05,2]
[348729477,1736758243115,-509.71140108,9.533e-05,2]
[348729478,1736758243127,-504.7935362,9.533e-05,2]
[348729479,1736758243138,-500.0,9.533e-05,2]
[348729480,1736758243149,-508.73551919,9.533e-05,2]
[348729481,1736758243161,-500.0,9.533e-05,2]
[348729482,1736758243172,-500.0,9.533e-05,2]
[348729483,1736758243183,-512.94312912,9.533e-05,2]
[348729484,1736758243195,-522.66057174,9.533e-05,2]
[348729485,1736758243207,-517.16853443,9.533e-05,2]
[348729486,1736758243218,-500.0,9.533e-05,2]
[348729487,1736758243230,-500.0,9.533e-05,2]
[348729488,1736758243241,-501.76458957,9.533e-05,2]
[348729489,1736758243252,-583.37,9.533e-05,2]
[348729490,1736758243263,-500.0,9.533e-05,2]
[348729491,1736758243274,-500.0,9.533e-05,2]
[348729492,1736758243286,-500.49197861,9.533e-05,2]
[348729493,1736758243296,-491.71625107,9.533e-05,2]
[348729494,1736758243312,-169.99,9.533e-05,2]
[348729495,1736758243324,-500.0,9.533e-05,2]
[348729496,1736758243335,-500.0,9.533e-05,2]
[348729498,1736758243345,-506.03322477,9.533e-05,2]
[348729499,1736758243356,-506.25196,9.533e-05,2]
[348729500,1736758243367,-500.0,9.533e-05,2]
[348729501,1736758243378,-500.0,9.533e-05,2]
[348729502,1736758243389,-500.0,9.533e-05,2]
[348729503,1736758243400,-500.0,9.533e-05,2]
[348729504,1736758243411,-500.0,9.533e-05,2]
[348729505,1736758243422,-500.0,9.533e-05,2]
[348729506,1736758243433,-260.67297095,9.533e-05,2]
[348729507,1736758243443,-299.44808004,9.533e-05,2]
[348729508,1736758243455,-300.64505811,9.533e-05,2]
[348729509,1736758243466,-500.0,9.533e-05,2]
[348729510,1736758243477,-500.0,9.533e-05,2]
[348729511,1736758243488,-500.0,9.533e-05,2]
[348729512,1736758243498,-510.48213236,9.533e-05,2]
[348729513,1736758243509,-507.63,9.533e-05,2]
[348729514,1736758243519,-500.0,9.533e-05,2]
[348729515,1736758243530,-510.50432151,9.533e-05,2]
[348729516,1736758243541,-500.0,9.533e-05,2]
[348729517,1736758243552,-572.73749973,9.533e-05,2]
[348729518,1736758243564,-500.0,9.533e-05,2]
[348729519,1736758243575,-500.0,9.533e-05,2]
[348729520,1736758243586,-228.53578307,9.533e-05,2]
[348729521,1736758243598,-500.35958622,9.533e-05,2]
[348729522,1736758243610,-500.0,9.533e-05,2]
[348729523,1736758243621,-500.0,9.533e-05,2]
[348729524,1736758243632,-500.76827566,9.533e-05,2]
[348729525,1736758243643,-507.58749162,9.533e-05,2]
[348729526,1736758243654,-500.0,9.533e-05,2]
[348729527,1736758243665,-500.0,9.533e-05,2]
[348729528,1736758243675,-500.0,9.533e-05,2]
[348729529,1736758243685,-500.0,9.533e-05,2]
[348729530,1736758243697,-508.69975845,9.533e-05,2]
[348729531,1736758243708,-500.0,9.533e-05,2]
[348729532,1736758243718,-500.0,9.533e-05,2]
[348729533,1736758243729,-500.0,9.533e-05,2]
[348729534,1736758243740,-500.0,9.533e-05,2]
[348729535,1736758243751,-539.03968977,9.533e-05,2]
[348729536,1736758243761,-322.42593089,9.533e-05,2]
[348729537,1736758243771,-506.74661379,9.533e-05,2]
[348729538,1736758243782,-500.0,9.533e-05,2]
[348729539,1736758243792,-500.0,9.533e-05,2]
[348729540,1736758243803,-500.0,9.533e-05,2]
[348729541,1736758243814,-500.0,9.533e-05,2]
[348729542,1736758243825,-606.58601037,9.533e-05,2]
[348729543,1736758243835,-500.0,9.533e-05,2]
[348729544,1736758243847,-500.0,9.533e-05,2]
[348729545,1736758243860,-504.85355492,9.533e-05,2]
[348729546,1736758243871,-506.49551386,9.533e-05,2]
[348729547,1736758243881,-503.09175867,9.533e-05,2]
[348729548,1736758243893,-500.0,9.533e-05,2]
[348729549,1736758243904,-609.28682838,9.533e-05,2]
[348729550,1736758243915,-500.0,9.533e-05,2]
[348729551,1736758243926,-509.91251888,9.533e-05,2]
[348729552,1736758243936,-501.95065821,9.533e-05,2]
[348729553,1736758243948,-504.88888869,9.533e-05,2]
[348729554,1736758243958,-500.0,9.533e-05,2]
[348729555,1736758243969,-502.02030148,9.533e-05,2]
[348729556,1736758243981,-507.10436666,9.533e-05,2]
[348729557,1736758243992,-500.0,9.533e-05,2]
[348729558,1736758244003,-505.16140976,9.533e-05,2]
[348729559,1736758244015,-500.0,9.533e-05,2]
[348729560,1736758244029,-500.0,9.533e-05,2]
[348729561,1736758244041,-500.0,9.533e-05,2]
[348729562,1736758244052,-500.0,9.533e-05,2]
[348729563,1736758244063,-500.0,9.533e-05,2]
[348729564,1736758244075,-500.0,9.533e-05,2]
[348729565,1736758244087,-500.0,9.533e-05,2]
[348729566,1736758244098,-503.42093987,9.533e-05,2]
[348729567,1736758244109,-516.93347041,9.533e-05,2]
[348729568,1736758244120,-500.0,9.533e-05,2]
[348729569,1736758244130,-160.57266012,9.533e-05,2]
[348729570,1736758244141,-282.70251686,9.533e-05,2]
[348729571,1736758244152,-500.0,9.533e-05,2]
[348729572,1736758244162,-500.0,9.533e-05,2]
[348729573,1736758244173,-502.39858661,9.533e-05,2]
[348729574,1736758244184,-501.52906279,9.533e-05,2]
[348729575,1736758244194,-580.07,9.533e-05,2]
[348729576,1736758244206,-500.0,9.533e-05,2]
[348729577,1736758244217,-500.92669852,9.533e-05,2]
[348729578,1736758244229,-500.0,9.533e-05,2]
[348729579,1736758244239,-500.0,9.533e-05,2]
[348729580,1736758244250,-500.0,9.533e-05,2]
[348729581,1736758244261,-500.0,9.533e-05,2]
[348729582,1736758244271,-227.63015514,9.533e-05,2]
[348729583,1736758244282,-500.0,9.533e-05,2]
[348729584,1736758244293,-500.0,9.533e-05,2]
[348729585,1736758244303,-500.0,9.533e-05,2]
[348729586,1736758244315,-500.0,9.533e-05,2]
[348729587,1736758244326,-500.0,9.533e-05,2]
[348729588,1736758244337,-500.0,9.533e-05,2]
[348729589,1736758244348,-500.0,9.533e-05,2]
[348729590,1736758244360,-509.11941015,9.533e-05,2]
[348729591,1736758244371,-500.0,9.533e-05,2]
[348729592,1736758244382,-511.11751844,9.533e-05,2]
[348729593,1736758244392,-500.0,9.533e-05,2]
[348729594,1736758244403,-500.0,9.533e-05,2]
[348729595,1736758244414,-500.0,9.533e-05,2]
[348729596,1736758244424,-500.0,9.533e-05,2]
[348729597,1736758244435,-497.54913441,9.533e-05,2]
[348729598,1736758244446,-500.0,9.533e-05,2]
[348729599,1736758244456,-500.0,9.533e-05,2]
[348729600,1736758244467,-500.0,9.533e-05,2]
[348729601,1736758244477,-505.67411603,9.533e-05,2]
[348729602,1736758244488,-500.0,9.533e-05,2]
[348729603,1736758244499,-500.0,9.533e-05,2]
[348729604,1736758244511,-504.35954405,9.533e-05,2]
[348729605,1736758244522,-500.0,9.533e-05,2]
[348729606,1736758244533,-500.0,9.533e-05,2]
[348729607,1736758244545,-993.91,9.533e-05,2]
[348729608,1736758244557,-300.0,9.533e-05,2]
[348729609,1736758244568,-501.73815135,9.533e-05,2]
[348729610,1736758244579,-500.0,9.533e-05,2]
[348729611,1736758244589,-504.54269383,9.533e-05,2]
[348729612,1736758244600,-508.58014545,9.533e-05,2]
[348729613,1736758244611,-500.0,9.533e-05,2]
[348729614,1736758244621,-500.0,9.533e-05,2]
[348729615,1736758244632,-500.0,9.533e-05,2]
[348729616,1736758244643,-500.0,9.533e-05,2]
[348729617,1736758244654,-500.9286802,9.533e-05,2]
[348729618,1736758244664,-502.98891223,9.533e-05,2]
[348729619,1736758244674,-500.0,9.533e-05,2]
[348729620,1736758244685,-504.9032517,9.533e-05,2]
[348729621,1736758244695,-500.0,9.533e-05,2]
[348729622,1736758244707,-500.0,9.533e-05,2]
[348729623,1736758244990,-500.0,9.533e-05,2]
[348729624,1736758245015,-500.0,9.533e-05,2]
[348729625,1736758245025,-504.84351205,9.533e-05,2]
[348729626,1736758245039,-1236.07,9.533e-05,2]
[348729627,1736758245049,-500.0,9.533e-05,2]
[348729628,1736758245058,-605.53677208,9.533e-05,2]
[348729629,1736758245067,-500.0,9.533e-05,2]
[348729630,1736758245077,-500.0,9.533e-05,2]
[348729631,1736758245086,-504.87689197,9.533e-05,2]
[348729632,1736758245095,-500.0,9.533e-05,2]
[348729633,1736758245106,-500.0,9.533e-05,2]
[348729634,1736758245116,-500.0,9.533e-05,2]
[348729635,1736758245125,-500.0,9.533e-05,2]
[348729636,1736758245134,-500.0,9.533e-05,2]
[348729637,1736758245143,-529.91761209,9.533e-05,2]
[348729638,1736758245154,-832.85,9.533e-05,2]
[348729639,1736758245163,-500.0,9.533e-05,2]
[348729640,1736758245172,-500.0,9.533e-05,2]
[348729641,1736758245181,-500.0,9.533e-05,2]
[348729642,1736758245190,-500.0,9.533e-05,2]
[348729643,1736758245199,-500.0,9.533e-05,2]
[348729644,1736758245208,-500.0,9.533e-05,2]
[348729645,1736758245217,-500.0,9.533e-05,2]
[348729646,1736758245227,-500.0,9.533e-05,2]
[348729647,1736758245237,-500.0,9.533e-05,2]
[348729648,1736758245246,-500.0,9.533e-05,2]
[348729649,1736758245255,-500.0,9.533e-05,2]
[348729650,1736758245264,-501.33246564,9.533e-05,2]
[348729651,1736758245273,-500.0,9.533e-05,2]
[348729652,1736758245282,-500.0,9.533e-05,2]
[348729653,1736758245291,-500.0,9.533e-05,2]
[348729654,1736758245300,-714.42,9.533e-05,2]
[348729655,1736758245310,-493.56737172,9.533e-05,2]
[348729656,1736758245319,-168.26303724,9.533e-05,2]
[348729657,1736758245327,-500.0,9.533e-05,2]
[348729658,1736758245337,-500.0,9.533e-05,2]
[348729659,1736758245346,-502.93145544,9.533e-05,2]
[348729660,1736758245355,-500.0,9.533e-05,2]
[348729661,1736758245364,-2364.52,9.533e-05,2]
[348729662,1736758245373,-500.0,9.533e-05,2]
[348729663,1736758245382,-500.0,9.533e-05,2]
[348729664,1736758245391,-730.68,9.533e-05,2]
[348729665,1736758245400,-500.0,9.533e-05,2]
[348729666,1736758245409,-500.0,9.533e-05,2]
[348729667,1736758245418,-697.04,9.533e-05,2]
[348729668,1736758245428,-500.0,9.533e-05,2]
[348729669,1736758245437,-500.0,9.533e-05,2]
[348729670,1736758245447,-500.0,9.533e-05,2]
[348729671,1736758245457,-1185.22,9.533e-05,2]
[348729672,1736758245466,-500.0,9.533e-05,2]
[348729673,1736758245475,-500.0,9.533e-05,2]
[348729674,1736758245485,-500.0,9.533e-05,2]
[348729675,1736758245495,-501.2206746,9.533e-05,2]
[348729676,1736758245505,-500.0,9.533e-05,2]
[348729677,1736758245514,-501.79558602,9.533e-05,2]
[348729678,1736758245525,-500.0,9.533e-05,2]
[348729679,1736758245534,-500.91663834,9.533e-05,2]
[348729680,1736758245544,-500.0,9.533e-05,2]
[348729681,1736758245553,-500.53536322,9.533e-05,2]
[348729682,1736758245563,-503.46963081,9.533e-05,2]
[348729683,1736758245573,-504.28694224,9.533e-05,2]
[348729684,1736758245582,-500.0,9.533e-05,2]
[348729685,1736758245591,-2284.07,9.533e-05,2]
[348729686,1736758245601,-503.24426748,9.533e-05,2]
[348729687,1736758245610,-500.0,9.533e-05,2]
[348729688,1736758245619,-500.0,9.533e-05,2]
[348729689,1736758245629,-500.0,9.533e-05,2]
[348729690,1736758245638,-500.0,9.533e-05,2]
[348729691,1736758245649,-500.0,9.533e-05,2]
[348729692,1736758245659,-500.0,9.533e-05,2]
[348729693,1736758245669,-527.52033851,9.533e-05,2]
[348729694,1736758245681,-500.0,9.533e-05,2]
[348729695,1736758245690,-500.0,9.533e-05,2]
[348729696,1736758245700,-500.0,9.533e-05,2]
[348729697,1736758245709,-2946.14,9.533e-05,2]
[348729698,1736758245718,-500.0,9.533e-05,2]
[348729699,1736758245728,-509.88,9.533e-05,2]
[348729700,1736758245737,-500.0,9.533e-05,2]
[348729701,1736758245747,-502.40358753,9.533e-05,2]
[348729702,1736758245756,-500.0,9.533e-05,2]
[348729703,1736758245765,-500.0,9.533e-05,2]
[348729704,1736758245775,-500.0,9.533e-05,2]
[348729705,1736758245784,-500.0,9.533e-05,2]
[348729707,1736758245794,-500.0,9.533e-05,2]
[348729709,1736758245803,-500.0,9.533e-05,2]
[348729710,1736758245813,-500.0,9.533e-05,2]
[348729713,1736758245822,-500.0,9.533e-05,2]
[348729714,1736758245831,-500.0,9.533e-05,2]
[348729716,1736758245841,-500.0,9.533e-05,2]
[348729719,1736758245851,-500.0,9.533e-05,2]
[348729721,1736758245860,-612.53,9.533e-05,2]
[348729723,1736758245869,-1753.65,9.533e-05,2]
[348729725,1736758245879,-500.0,9.533e-05,2]
[348729727,1736758245888,-500.0,9.533e-05,2]
[348729728,1736758245898,-500.0,9.533e-05,2]
[348729730,1736758245907,-500.0,9.533e-05,2]
[348729732,1736758245916,-500.0,9.533e-05,2]
[348729734,1736758245925,-500.0,9.533e-05,2]
[348729736,1736758245935,-500.0,9.533e-05,2]
[348729738,1736758245945,-500.0,9.533e-05,2]
[348729740,1736758245954,-612.37,9.533e-05,2]
[348729742,1736758245963,-2373.22,9.533e-05,2]
[348729744,1736758245973,-500.0,9.533e-05,2]
[348729746,1736758245982,-500.0,9.533e-05,2]
[348729748,1736758245992,-500.0,9.533e-05,2]
[348729750,1736758246003,-504.2078541,9.533e-05,2]
[348729752,1736758246012,-522.53233494,9.533e-05,2]
[348729753,1736758246023,-1126.5,9.533e-05,2]
[348729754,1736758246034,-500.0,9.533e-05,2]
[348729755,1736758246045,-655.63,9.533e-05,2]
[348729756,1736758246054,-500.0,9.533e-05,2]
[348729757,1736758246064,-500.0,9.533e-05,2]
[348729758,1736758246074,-706.77,9.533e-05,2]
[348729759,1736758246084,-500.0,9.533e-05,2]
[348729760,1736758246095,-500.0,9.533e-05,2]
[348729761,1736758246105,-2623.03,9.533e-05,2]
[348729762,1736758246115,-500.0,9.533e-05,2]
[348729763,1736758246125,-775.79,9.533e-05,2]
[348729764,1736758246134,-1153.47,9.533e-05,2]
[348729765,1736758246144,-500.0,9.533e-05,2]
[348729766,1736758246153,-716.91,9.533e-05,2]
[348729767,1736758246163,-1782.4,9.533e-05,2]
[348729768,1736758246172,-807.52,9.533e-05,2]
[348729769,1736758246182,-500.0,9.533e-05,2]
[348729770,1736758246193,-735.42,9.533e-05,2]
[348729771,1736758246203,-500.0,9.533e-05,2]
[348729772,1736758246212,-500.0,9.533e-05,2]
[348729773,1736758246221,-846.18,9.533e-05,2]
[348729774,1736758246231,-1178.84,9.533e-05,2]